Cogmind - Beta 11 X5 @@@ ROGUE MODE // 2021.06.16 @ 21:04:29 Player: Runia Result: Self-destructed Performance ------------- Evolutions (6) 3000 Regions Visited (7) 1400 Robots Destroyed (91) 455 Value Destroyed (2879) 2879 Prototype IDs (3) 60 Alien Tech Used (0) 0 Bonus (120) 120 TOTAL SCORE: 7914 Bonus ------- High Alert Combat Kills 55 Follower Combat Kills 65 Cogmind --------- Core Integrity 1104/1150 Matter 300/300 Energy 220/220 System Corruption 3% Temperature Cool (0) Movement Rolling (115) Ox1 Location -4/Factory Parts ------- > --- POWER (2) -------- Light Fission Core Light Fission Core > --- PROPULSION (5) --- Flexi-carbon Leg Flexi-carbon Leg Flexi-carbon Leg Armored Huge Wheel > --- UTILITY (9) ------ Large Storage Unit Advanced Visual Processing Unit Improved Sensor Array Improved Signal Interpreter Improved Melee Analysis Suite Improved Armor Integrity Analyzer Microactuators Advanced Transmission Jammer Improved Hacking Suite > --- WEAPON (3) ------- Heavy Assault Rifle Heavy Pick Heavy Pick > --- INVENTORY (15) --- Antimatter Reactor Flexi-carbon Leg Compact Wheel Compact Wheel Centrium Wheel Improved Signal Interpreter Improved Target Analyzer Improved Transmission Jammer Improved Medium Armor Plating Hacking Suite Disruptor Cannon Grenade Launcher Grenade Launcher Mini Grenade Launcher Advanced Datajack Peak State ------------ > --- POWER ------------ Light Fission Core Light Fission Core > --- PROPULSION ------- Flexi-carbon Leg Flexi-carbon Leg Flexi-carbon Leg Armored Huge Wheel > --- UTILITY ---------- Experimental Cooling System Large Storage Unit Advanced Visual Processing Unit Improved Sensor Array Improved Signal Interpreter Improved Melee Analysis Suite Improved Armor Integrity Analyzer Microactuators Improved Hacking Suite > --- WEAPON ----------- Heavy Assault Rifle Heavy Pick Heavy Pick > --- INVENTORY -------- Antimatter Reactor Flexi-carbon Leg Compact Wheel Compact Wheel Improved Signal Interpreter Improved Target Analyzer Improved Transmission Jammer Advanced Transmission Jammer Disruptor Cannon Grenade Launcher Grenade Launcher Mini Grenade Launcher Advanced Datajack [Rating: 86] Favorites ----------- Power Reinforced Ion Engine Engine Reinforced Ion Engine Power Core Light Fission Core Propulsion Armored Wheel Treads Medium Treads Leg Aluminum Leg Wheel Armored Wheel Utility Large Storage Unit Device Sensor Array Storage Large Storage Unit Processor Improved Signal Interpreter Hackware Hacking Suite Protection Propulsion Shielding Weapon Heavy Pick Energy Gun Lightning Gun Energy Cannon Beam Cannon Ballistic Gun Assault Rifle Launcher Grenade Launcher Slashing Weapon Katana Piercing Weapon Heavy Pick Build | -11 -10 -9 -8 -7 -6 -5 -4 ------- Run | Scr Mat Mat Mat Fac Fac Fac Fac Slots Evolved 12 | . . 2 2 2 2 2 2 Power 1 | . . . . . . . 1 Propulsion 3 | . . 1 1 . . 1 . Utility 7 | . . 1 1 1 2 1 1 Weapon 1 | . . . . 1 . . . Parts Attached 81 | . 9 16 10 9 12 17 8 Power 9 | . 1 2 1 . 1 3 1 Engine 7 | . 1 2 1 . 1 2 . Core 2 | . . . . . . 1 1 Reactor . | . . . . . . . . Propulsion 25 | . 3 6 1 3 4 6 2 Treads 3 | . . . . 2 1 . . Leg 11 | . 3 3 . . . 3 2 Wheel 11 | . . 3 1 1 3 3 . Hover . | . . . . . . . . Flight . | . . . . . . . . Utility 25 | . 3 2 4 2 5 4 5 Device 11 | . . 1 3 . 1 2 4 Storage 1 | . 1 . . . . . . Processor 6 | . 1 1 1 1 . 1 1 Hackware 2 | . . . . 1 . 1 . Protection 5 | . 1 . . . 4 . . Artifact . | . . . . . . . . Weapon 22 | . 2 6 4 4 2 4 . Energy Gun 4 | . . 2 1 1 . . . Energy Cannon 5 | . . 3 . 1 . 1 . Ballistic Gun 3 | . 2 . . . . 1 . Ballistic Cannon . | . . . . . . . . Launcher 4 | . . 1 2 1 . . . Special Weapon . | . . . . . . . . Impact Weapon . | . . . . . . . . Slashing Weapon 3 | . . . 1 1 1 . . Piercing Weapon 3 | . . . . . 1 2 . Special Melee Weapon . | . . . . . . . . Unidentified Prototypes 1 | . . . . . . . 1 Parts Lost 35 | . 3 8 2 . 9 13 . Power 6 | . . 1 1 . 1 3 . Propulsion 13 | . . 3 . . 5 5 . Utility 6 | . 1 1 . . 2 2 . Weapon 10 | . 2 3 1 . 1 3 . Highest Loss Streak 9 | . 1 3 1 . 6 9 . Average Slot Usage (%) 95 | . 96 92 100 98 96 90 94 Engine 7 | . 14 10 9 7 5 2 . Core 1 | . . . . . . 1 10 Treads 1 | . . . . . 5 1 . Leg 10 | . 28 22 . . . 6 15 Wheel 13 | . . 9 36 29 16 12 5 Device 7 | . . 1 11 7 10 8 15 Storage 8 | . 14 11 9 7 6 5 5 Processor 12 | . 1 10 15 15 13 14 20 Hackware 4 | . . . . 7 6 11 5 Protection 4 | . 9 3 . . 8 4 . Energy Gun 2 | . 1 6 5 5 3 . . Energy Cannon 5 | . . 12 9 9 9 2 . Ballistic Gun 6 | . 25 2 . . . 2 5 Slashing Weapon 1 | . . . 1 5 2 1 . Piercing Weapon 3 | . . . . . 2 9 10 Naked Turns . | . . . . . . . . Heaviest Build 55 | 14 30 37 38 45 53 55 47 Greatest Support 72 | 20 20 36 48 48 44 72 28 Greatest Overweight (x) 1 | . 1 1 . 1 1 1 1 Average Overweight (x) . | . . . . . . . 1 Largest Inventory Capacity 15 | . 15 15 15 15 15 15 15 Average Capacity 14 | . 12 15 15 15 15 15 15 Most Carried 15 | . 15 15 14 15 15 15 15 Average Carried 12 | . 10 12 9 14 14 11 13 Final Capacity 15 | 8 15 15 15 15 15 15 15 Final Carried 15 | 6 15 11 14 15 15 11 15 Class Distribution -------------------- 34% | Mutant 18% | Scavenger-Assassin 16% | Assassin 8% | Skirmisher 8% | Scavenger-Mutant 7% | Commander-Skirmisher 4% | Hacker-Mutant Dominant Class ---------------- Mutant | -10/Materials Scavenger-Mutant | -9/Materials Mutant | -8/Materials Assassin | -7/Factory Mutant | -6/Factory Hacker-Mutant | -5/Factory Scavenger-Assassin | -4/Factory Resources | -11 -10 -9 -8 -7 -6 -5 -4 ----------- Run | Scr Mat Mat Mat Fac Fac Fac Fac Matter Collected 1497 | 200 370 248 154 177 110 148 90 Remotely . | . . . . . . . . Salvage Created 3676 | . 781 414 324 203 783 804 367 Parts 193 | . 50 21 16 13 33 42 18 Haulers Intercepted 1 | . 1 . . . . . . Recyclers Shooed 1 | . . . . . . 1 . Parts Field Recycled . | . . . . . . . . Retrieved Matter . | . . . . . . . . Parts Self-Destructed . | . . . . . . . . Prevented . | . . . . . . . . Kills | -11 -10 -9 -8 -7 -6 -5 -4 ------- Run | Scr Mat Mat Mat Fac Fac Fac Fac Combat Hostiles Destroyed 59 | . 16 12 10 2 9 8 2 Melee 20 | . . . 2 . 8 8 2 Guns 16 | . 14 1 1 . . . . Cannons 10 | . . 8 . 1 1 . . AOE 11 | . 2 3 6 . . . . Classes Destroyed 13 | . 7 3 . 1 2 . . Worker 7 | . . 1 . . 1 2 3 Builder 5 | . 1 . . 1 2 . 1 Tunneler 2 | . . . . 1 . . 1 Hauler 1 | . 1 . . . . . . Recycler 6 | . 2 . 1 . 1 1 1 Operator 2 | . 2 . . . . . . Watcher 9 | . 3 2 . . 1 3 . Swarmer 10 | . 3 3 4 . . . . Grunt 33 | . 13 7 4 . 6 3 . Duelist 1 | . . 1 . . . . . Sentry 8 | . . 1 2 2 1 1 1 Hunter 3 | . . . . . 1 2 . Programmer 4 | . . . . . 1 2 1 Best Kill Streak 7 | . 7 6 4 2 2 6 4 Combat Bots Only 4 | . 4 4 4 1 2 4 1 Max Kills in Single Turn 4 | . 4 3 2 1 1 1 1 Gunslinging . | . . . . . . . . Exploded 3 | . 2 3 2 . . . . Melee 1 | . . . 1 . 1 1 1 Uniques/NPCs Destroyed . | . . . . . . . . Combat | -11 -10 -9 -8 -7 -6 -5 -4 -------- Run | Scr Mat Mat Mat Fac Fac Fac Fac Damage Taken 5315 | . 694 915 444 156 1318 1690 98 Core 844 | . 102 85 91 36 168 316 46 Absorbed by Shields . | . . . . . . . . Core Remaining (%) 80 | 100 59 78 83 94 80 68 . Volleys Fired 128 | . 58 32 19 10 7 2 . Largest 3 | . 2 2 2 3 3 1 . Hottest 195 | . 60 125 125 195 195 81 . Shots Fired 247 | . 115 61 28 20 21 2 . Gun 164 | . 115 26 9 6 7 1 . Cannon 69 | . . 34 10 10 14 1 . Launcher 14 | . . 1 9 4 . . . Special . | . . . . . . . . Kinetic 107 | . 94 12 . . . 1 . Thermal 91 | . . 48 19 10 14 . . Explosive 14 | . . 1 9 4 . . . Electromagnetic 35 | . 21 . . 6 7 1 . Robot Hit Streak 17 | . 11 17 10 6 17 2 . Robot Miss Streak 4 | . 3 4 3 1 1 . . Penetration Max . | . . . . . . . . Secondary Targets . | . . . . . . . . Shots Hit Robots 251 | . 72 37 24 11 53 40 14 Core Hits 146 | . 40 20 18 6 26 27 9 Critical Kills 2 | . 1 . . 1 . . . Critical Parts Destroyed . | . . . . . . . . Critical Strikes 12 | . 1 1 1 1 5 3 . Burn 2 | . . 1 1 . . . . Meltdown 1 | . . . . 1 . . . Destroy 1 | . 1 . . . . . . Puncture 8 | . . . . . 5 3 . Melee Attacks 149 | . . . 6 7 58 52 26 Impact . | . . . . . . . . Slashing 24 | . . . 6 7 7 4 . Piercing 125 | . . . . . 51 48 26 Sneak Attacks 18 | . . . . . 4 6 8 Combat Hostiles . | . . . . . . . . Follow-up Attacks 13 | . . . . . 5 6 2 Damage Inflicted 7828 | . 1333 1247 698 216 1815 1530 989 Guns 1424 | . 890 222 98 72 129 13 . Cannons 773 | . . 391 87 144 147 4 . Explosions 1532 | . 443 634 394 . 61 . . Melee 4099 | . . . 119 . 1478 1513 989 Ramming . | . . . . . . . . Kinetic 772 | . 694 65 . . . 13 . Thermal 1681 | . 130 1014 185 144 208 . . Explosive 875 | . 313 168 394 . . . . Electromagnetic 401 | . 196 . . 72 129 4 . Impact . | . . . . . . . . Slashing 270 | . . . 119 . 91 60 . Piercing 3829 | . . . . . 1387 1453 989 Highest Corruption 3 | . 3 . . . 1 3 3 Average Corruption 2 | . 2 . . . 1 2 3 Corruption Purged . | . . . . . . . . Effects 23 | . 6 . . . 5 4 8 Message Errors 5 | . 2 . . . 1 1 1 Matter Fused 5 | . 2 . . . . 2 1 Heat Flow Errors 2 | . 1 . . . . . 1 Energy Discharges 3 | . . . . . 1 1 1 Data Loss (minor) 8 | . 1 . . . 3 . 4 Overload Shots . | . . . . . . . . Overflow Damage 661 | . 22 236 . . 137 137 129 Projectiles . | . . . . . . . . Explosions 258 | . 22 236 . . . . . Melee 403 | . . . . . 137 137 129 Knockbacks . | . . . . . . . . Impact . | . . . . . . . . Kinetic . | . . . . . . . . Secondary . | . . . . . . . . Self-Inflicted Damage 511 | . 200 230 81 . . . . Shots 11 | . 3 3 5 . . . . Rammed . | . . . . . . . . Targets Rammed . | . . . . . . . . Kicked . | . . . . . . . . Crushed . | . . . . . . . . Highest Temperature 406 | . 136 406 183 270 288 22 247 Average Temperature 99 | . 25 131 65 114 93 16 114 Received Heat Transfer 1213 | . 225 222 162 48 391 129 36 Effects 3 | . . 3 . . . . . Shutdowns 1 | . . 1 . . . . . Interference 2 | . . 2 . . . . . Siege Activations . | . . . . . . . . Robots Corrupted . | . . . . . . . . Combat Hostiles . | . . . . . . . . Parts Fried 1 | . . . . . 1 . . Impact Corruptions . | . . . . . . . . Robots Melted 2 | . . . 1 1 . . . Combat Hostiles 2 | . . . 1 1 . . . Parts Melted 10 | . . 4 2 3 1 . . Heat Transferred 2885 | . 200 1608 481 298 298 . . Parts Sabotaged . | . . . . . . . . Parts Stolen . | . . . . . . . . Parts Stripped . | . . . . . . . . Power Chain Reactions 3 | . 2 . . . 1 . . Missiles Intercepted . | . . . . . . . . Alert | -11 -10 -9 -8 -7 -6 -5 -4 ------- Run | Scr Mat Mat Mat Fac Fac Fac Fac Peak Influence 553 | . 359 358 553 298 204 268 111 Initial 251 | . . 113 142 251 110 27 29 Average 159 | . 207 228 330 209 111 115 34 Maximum Alert Level 2 | . 1 1 2 1 1 1 . Low Security (%) 65 | . 34 34 40 43 98 68 100 Level 1 31 | . 65 65 21 56 1 31 . Level 2 2 | . . . 38 . . . . Level 3 . | . . . . . . . . Level 4 . | . . . . . . . . Level 5 . | . . . . . . . . High Security . | . . . . . . . . Max Security . | . . . . . . . . Squads Dispatched 16 | . 6 1 1 . 4 2 2 Investigation 4 | . 3 . . . . 1 . Extermination 5 | . . . . . 2 1 2 Reinforcement 7 | . 3 1 1 . 2 . . Assault . | . . . . . . . . Garrison . | . . . . . . . . Intercept . | . . . . . . . . Construction Impeded 1 | . . . . . 1 . . Haulers Reinforced . | . . . . . . . . Cargo Convoy Interrupts . | . . . . . . . . Stealth | -11 -10 -9 -8 -7 -6 -5 -4 --------- Run | Scr Mat Mat Mat Fac Fac Fac Fac Distress Signals 6 | . 3 1 1 . . 1 . Communications Jammed 51 | . . . . . . 51 . Distress Signals 49 | . . . . . . 49 . Times Spotted 110 | . 29 18 14 4 21 20 4 Peak Tracking Total 6 | . 3 5 4 1 5 6 2 Tactical Retreats 6 | . 1 . 1 . 1 3 . Traps | -11 -10 -9 -8 -7 -6 -5 -4 ------- Run | Scr Mat Mat Mat Fac Fac Fac Fac Traps Triggered 4 | . 4 . . . . . . Indirectly . | . . . . . . . . Trap Hack Attempts . | . . . . . . . . Triggered . | . . . . . . . . Disarmed . | . . . . . . . . Reprogrammed . | . . . . . . . . Reused . | . . . . . . . . Traps Extracted . | . . . . . . . . Installed . | . . . . . . . . Triggered 1 | . . . . . 1 . . Machines | -11 -10 -9 -8 -7 -6 -5 -4 ---------- Run | Scr Mat Mat Mat Fac Fac Fac Fac Machines Disabled 14 | . 2 9 1 1 . . 1 Max in Single Turn 5 | . 2 5 1 1 . . 1 Garrison Access 2 | . . . . 1 1 . . Machines Sabotaged . | . . . . . . . . Garrisons Compromised . | . . . . . . . . Overloaded Fab Kills . | . . . . . . . . Fab Network Shutdowns . | . . . . . . . . Hacking | -11 -10 -9 -8 -7 -6 -5 -4 --------- Run | Scr Mat Mat Mat Fac Fac Fac Fac Machines Accessed 26 | . 2 . 6 7 7 1 3 Terminals 18 | . 1 . 5 5 4 . 3 Fabricators 1 | . . . . . 1 . . Repair Stations 1 | . . . . 1 . . . Recycling Units 1 | . 1 . . . . . . Scanalyzers 2 | . . . 1 . 1 . . Garrison Access 3 | . . . . 1 1 1 . Total Hacks 88 | . 6 . 25 19 29 3 6 Successful 56 | . 4 . 14 12 26 . . Failed 32 | . 2 . 11 7 3 3 6 Catastrophic 5 | . . . 3 . . . 2 Database Lockouts . | . . . . . . . . Manual 28 | . 2 . 8 8 4 1 5 Terminals 55 | . 4 . 18 16 11 . 6 Fabricators 3 | . . . . . 3 . . Repair Stations 2 | . . . . 2 . . . Recycling Units 2 | . 2 . . . . . . Scanalyzers 21 | . . . 7 . 14 . . Garrison Access 5 | . . . . 1 1 3 . Terminal Hacks 19 | . 2 . 6 7 4 . . Record 3 | . . . . . 3 . . Part Schematic 1 | . . . . . 1 . . Robot Analysis 1 | . 1 . . . . . . Prototype ID Bank 1 | . . . 1 . . . . Emergency Access Points 1 | . . . 1 . . . . Terminal Index 2 | . . . 1 1 . . . Alert Level 2 | . . . 1 1 . . . Locate Traps 4 | . . . 1 3 . . . Dispatch Records 1 | . 1 . . . . . . Hauler Manifests 1 | . . . 1 . . . . Zone Layout 2 | . . . . 2 . . . Fabricator Hacks 3 | . . . . . 3 . . Load Schematic 1 | . . . . . 1 . . Build 2 | . . . . . 2 . . Repair Station Hacks 2 | . . . . 2 . . . Scan Component 1 | . . . . 1 . . . Repair 1 | . . . . 1 . . . Recycling Unit Hacks . | . . . . . . . . Scanalyzer 21 | . . . 7 . 14 . . Insert Component 10 | . . . 4 . 6 . . Analyze 11 | . . . 3 . 8 . . Garrison Access Hacks 2 | . . . . 1 1 . . Seal Access 2 | . . . . 1 1 . . Unauthorized Hacks 9 | . 2 . 1 2 4 . . Terminals 8 | . 1 . 1 2 4 . . Assimilate 4 | . . . . 2 2 . . Botnet 4 | . 1 . 1 . 2 . . Fabricators . | . . . . . . . . Repair Stations . | . . . . . . . . Recycling Units 1 | . 1 . . . . . . Tunnel 1 | . 1 . . . . . . Scanalyzers . | . . . . . . . . Garrison Access . | . . . . . . . . Data Cores Recovered . | . . . . . . . . Used . | . . . . . . . . Hacking Detections 23 | . 1 . 6 6 6 1 3 Full Trace Events 1 | . . . . . . 1 . Feedback Events . | . . . . . . . . Feedback Blocked . | . . . . . . . . Robot Schematics Acquired . | . . . . . . . . Robots Built 3 | . . . . . 3 . . Matter 285 | . . . . . 285 . . Time 76 | . . . . . 76 . . Total Robot Build Rating 15 | . . . . . 15 . . Part Schematics Acquired 10 | . . . 3 . 7 . . Parts Built 1 | . . . . . 1 . . Matter 124 | . . . . . 124 . . Time 31 | . . . . . 31 . . Total Part Build Rating 2 | . . . . . 2 . . Parts Repaired 1 | . . . . 1 . . . Time 16 | . . . . 16 . . . Parts Recycled . | . . . . . . . . Recycled Matter . | . . . . . . . . Retrieved Matter . | . . . . . . . . Retrieved Components . | . . . . . . . . Parts Scanalyzed 9 | . . . 3 . 6 . . Part Schematics Acquired 9 | . . . 3 . 6 . . Parts Damaged 1 | . . . 1 . . . . Bothacking | -11 -10 -9 -8 -7 -6 -5 -4 ------------ Run | Scr Mat Mat Mat Fac Fac Fac Fac Used RIF Installer . | . . . . . . . . Robots Hacked . | . . . . . . . . Non-combat . | . . . . . . . . Combat . | . . . . . . . . Robot Hacks Applied . | . . . . . . . . Relay Couplers Released . | . . . . . . . . Robots Rewired . | . . . . . . . . Allies Hacked 1 | . . . . . . 1 . Hacks Repelled . | . . . . . . . . Allies | -11 -10 -9 -8 -7 -6 -5 -4 -------- Run | Scr Mat Mat Mat Fac Fac Fac Fac Total Allies 6 | . . . . 1 5 . . Largest Group 5 | . . . . 1 5 1 . Highest-Rated Group 139 | . . . . 26 139 10 . Highest-Rated Ally 29 | . . . . 26 29 10 . Total Orders . | . . . . . . . . Ally Attacks 15 | . . . . . 15 . . Total Damage 179 | . . . . . 179 . . Kills 2 | . . . . . 2 . . Allies Corrupted . | . . . . . . . . Allies Melted 1 | . . . . . 1 . . Intel | -11 -10 -9 -8 -7 -6 -5 -4 ------- Run | Scr Mat Mat Mat Fac Fac Fac Fac Robot Analysis Total 1 | . 1 . . . . . . Derelict Logs Recovered . | . . . . . . . . Drone Launches . | . . . . . . . . Drone Recoveries . | . . . . . . . . Exploration | -11 -10 -9 -8 -7 -6 -5 -4 ------------- Run | Scr Mat Mat Mat Fac Fac Fac Fac Turns Passed 5382 | . 1108 445 387 753 1316 583 790 Spaces Moved 3459 | 1 542 195 276 682 856 333 574 Core . | . . . . . . . . Treads . | . . . . . . . . Legs 661 | 1 542 118 . . . . . Wheels 2798 | . . 77 276 682 856 333 574 Hover . | . . . . . . . . Flight . | . . . . . . . . Fastest Speed 90 | 120 120 90 90 90 100 96 115 Average Speed 113 | 120 157 146 90 90 106 105 115 Slowest Speed 200 | 120 200 200 90 105 115 115 115 Overloaded Moves . | . . . . . . . . Propulsion Burnouts . | . . . . . . . . Robots Hopped . | . . . . . . . . Cave-ins Triggered . | . . . . . . . . Exploration Rate (%) 26 | 2 79 26 24 23 26 12 18 Regions Visited 7 Branch Regions . Pre-discovered Areas 1 | . 1 . . . . . . Known Exits Taken 4 | . . . 1 1 1 1 . Unknown Exits Taken 3 | 1 1 1 . . . . . Scrap Searched . | . . . . . . . . Spaces Dug 23 | . . . . 8 6 1 8 Terrain Destroyed 192 | . 22 79 48 25 9 1 8 Melee 15 | . . . . . 6 1 8 Projectile . | . . . . . . . . AOE 177 | . 22 79 48 25 3 . . Terrain Rammed . | . . . . . . . . Walls Destroyed . | . . . . . . . . Machines Disabled . | . . . . . . . . Actions | -11 -10 -9 -8 -7 -6 -5 -4 --------- Run | Scr Mat Mat Mat Fac Fac Fac Fac Total 4422 | . 688 293 372 784 1138 475 672 Wait 507 | . 49 34 51 63 193 62 55 Move 3452 | . 541 194 275 681 855 332 574 Hop . | . . . . . . . . Pick Up 85 | . 19 11 9 7 14 15 10 Fast Attach 7 | . 3 . . 2 2 . . Attach 45 | . 1 10 4 1 9 16 4 Detach . | . . . . . . . . Swap 29 | . 5 6 6 6 1 1 4 Drop 41 | . 12 6 2 7 6 4 4 Fire 128 | . 58 32 19 10 7 2 . Melee 128 | . . . 6 7 51 43 21 Ram . | . . . . . . . . Kick . | . . . . . . . . Crush . | . . . . . . . . Escape Stasis . | . . . . . . . . Rewire . | . . . . . . . . Trap . | . . . . . . . . Miscellaneous . | . . . . . . . . Route ------- -11/Scrapyard -10/Materials (discovered 2 exits: [*Mat x2]) -9/Materials -8/Materials -7/Factory -6/Factory -5/Factory -4/Factory History --------- Turn | Location | Event 1 | -11/Scrapyard | Discovered new exit (range 0) 1 | -11/Scrapyard | Entered Materials 309 | -10/Materials | Build established: Mutant 450 | -10/Materials | Discovered new exit (range 16) 842 | -10/Materials | Discovered new exit (range 8) 1109 | -10/Materials | Entered another Materials area 1109 | -9/Materials | Evolved 2 slots: Propulsion x1, Utility x1 1308 | -9/Materials | Lost 3 parts (1p1n1u) 1391 | -9/Materials | Build established: Scavenger-Mutant 1453 | -9/Materials | Lost 3 parts (2n1w) 1548 | -9/Materials | Discovered new exit (range 4) 1554 | -9/Materials | Entered another Materials area 1554 | -8/Materials | Evolved 2 slots: Propulsion x1, Utility x1 1897 | -8/Materials | Discovered new exit (range 3) 1925 | -8/Materials | Identified exit to Factory 1941 | -8/Materials | Entered Factory 1941 | -7/Factory | Evolved 2 slots: Utility x1, Weapon x1 2147 | -7/Factory | Repaired Arm. Wheel 2168 | -7/Factory | Build established: Assassin 2655 | -7/Factory | Discovered new exit (range 11) 2685 | -7/Factory | Identified exit to Factory 2694 | -7/Factory | Entered another Factory area 2694 | -6/Factory | Accompanied by 1 ally 2694 | -6/Factory | Evolved 2 slots: Utility x2 2812 | -6/Factory | Build established: Skirmisher 2909 | -6/Factory | Fabricated G-50 Soldier (x3) 2940 | -6/Factory | Fabricated Mni. Grenade Launcher (x1) 3211 | -6/Factory | Build established: Commander-Skirmisher 3637 | -6/Factory | Lost 6 parts (1p4n1u) 3884 | -6/Factory | Spotted B-75 Beast 3886 | -6/Factory | Build established: Mutant 3982 | -6/Factory | Discovered new exit (range 19) 4002 | -6/Factory | Identified exit to Factory 4010 | -6/Factory | Entered another Factory area 4010 | -5/Factory | Accompanied by 1 ally 4010 | -5/Factory | Evolved 2 slots: Propulsion x1, Utility x1 4212 | -5/Factory | Lost 3 parts (1p1u1w) 4388 | -5/Factory | Lost 9 parts (2p4n1u2w) 4555 | -5/Factory | Discovered new exit (range 8) 4563 | -5/Factory | Identified exit to Factory 4593 | -5/Factory | Entered another Factory area 4593 | -4/Factory | Evolved 2 slots: Power x1, Utility x1 4691 | -4/Factory | Build established: Scavenger-Assassin 5383 | -4/Factory | Self-destructed Last Messages --------------- HYV > Q F=UTOFN%BM%ELYFAC6JBVTL K-01 Serf collects debris. System corrupted: Component data lost. ALERT: Rogue bot located, Programmers report to Factory Zone 7K. K-01 Serf cleans the Subcomponent Replicator. Critical hit (Burn: +37). Penetrated by Slug. Y-64 Sentinel destroyed. K-01 Serf cleans the Subcomponent Replicator. Dropped Hacking Suite. Acquired Imp. Medium Armor Plating. K-01 Serf cleans the Subcomponent Replicator. Sneak attack on K-01 Serf. K-01 Serf destroyed. K-01 Serf collects debris. Sneak attack on K-01 Serf. K-01 Serf destroyed. K-01 Serf collects debris. Sneak attack on K-01 Serf. K-01 Serf destroyed. Map ----- +----------------------------------------------------+ | ?????????????????????????????????????????????????? | | ?????????????????????????????????????????????????? | | ?????????????????????????????????????????????????? | | ?????????????????????????????????????##? #####???? | | ?????????????????????????????????????? #???? | | ?????????????????????????????????????? #???? | | ??????????????????????????????????????? +???? | | ????????????????????? ??????????????? """ #???? | | ??????????????????? ????????????????""" #???? | | ??????????????????# ????????????????""" #???? | | ??????????????????# ????????????????? #???? | | ??????????????????# o ????????????????? #???? | | ??????????????????# ?????????????????# #???? | | ??????????????????# ?????????????????# ##### | | ??????????????????# ?????????????????# ? | | ??????????????????# ####+#######?????# #???? | | ??????????????????# # #?????# #???? | | ??????????????????# # #?????# #???? | | ??????????????????# # """ #######+#+####? | | ??????????????????# # """"" [ # % #? | | ??????????????????# # """"" # #? | | ??????????????????# # # ## | | ??????????????????# # """ # ## | | ??????????????????# # """"" # % ! ## | | ??????????????????# # """"" # ## | | ??????????????????# #@% # ! ## | | ??????????????????# +!=*""" # ] ## | | ??????????????????# #%""""" # ## | | ??????????????????# #*""""" + ! ## | | ??????????????????# # [! # ## | | ??????????????????# # =% # ## | | ??????????????????# ### ##############+####### | | ??????????????????# #?###???# | | ??????????????????# #???????# ##### | | ??????????????????# #???????# #???# | | ??????????????????# #???????# #???# | | ??????????????????# #???????# |[! #???# | | ??????????????????# ????????# ###+######## | | ??????????????????# ######### # !%! ## | | ??????????????????# # # | | ??????????????????+ # "" # | | ??????????????????# ! # "" """"# | | ??????????????????# """ # "T """"# | | ??????????????????# """ # "" """"# | | ??????????????????? """ ######## "" """"# | | ????????????????????? ?? ??????## # | | ??????????????????????????"" ???????############ | | ???????????????????????????"?????????#####??????# | | ????????????????????????????????????????????????# | | ????????????????????????????????????????????????# | +----------------------------------------------------+ Best States ------------- Heat Dissipation 47 Energy Generation 31 Energy Capacity 290 Matter Stores 300 Matter Capacity 300 Sight Range 20 Robot Scan Range 15 Terrain Scan Density 10 Jamming Range 16 Armor Coverage 375 Propulsion Shielding 33 Melee Speed Boost 20 Evasion (%) 55 Targeting Accuracy 5 Melee Accuracy 6 Armor Integrity Analysis 30 Offensive Hacking 22 Item Schematics ----------------- Mni. Grenade Launcher | -8/Materials | Scanalyzed Grenade Launcher | -8/Materials | Scanalyzed Heat Sink | -8/Materials | Scanalyzed Lgt. Antimatter Reactor | -6/Factory | Hacked Hvy. Pick | -6/Factory | Scanalyzed Imp. Transmission Jammer | -6/Factory | Scanalyzed Imp. Deuterium Engine | -6/Factory | Scanalyzed Arm. Huge Wheel | -6/Factory | Scanalyzed Med. Treads | -6/Factory | Scanalyzed Imp. Medium Armor Plating | -6/Factory | Scanalyzed Robot Schematics ------------------ None Fabricated ------------ G-50 Soldier | x3 | -6/Factory | Preloaded Mni. Grenade Launcher | x1 | -6/Factory Alien Tech Used ----------------- None Achievements -------------- None Challenges ------------ None Game ------ Seed ForceCooledComputer Manual? 0 Play Time 00:42:46 Cumulative 202.0 hours Start 2021.06.12 @ 19:07:23 End 2021.06.16 @ 21:04:29 Sessions 7 Manual Loads 0 Difficulty Rogue Special Mode None Game No. 252 Rogue 252 Adventurer 0 Explorer 0 Win Type - Total 2 Types 2/0/0/0/0/0/0/0/0 Lore% 59 Gallery% 77 Achievement% 57 Wizard Run 0 Options --------- ASCII 0 Keyboard 0 Movement Mouse Keybinds 1 Fullscreen 2 Font 24/Smallcaps Map View 76x50 Tactical HUD 1 Map Filters NONE Filters NONE Steam 1 RUN: e75d8e42-15ce-486a-9889-c2e31929a205